[Event "EYCC Open-U18 2019"]
[Site "Bratislava"]
[Date "2019.08.03"]
[Round "2.26"]
[White "Travadon, Loic"]
[Black "Toquero Gracia, Pau"]
[Result "1/2-1/2"]
[ECO "A41"]
[WhiteElo "2403"]
[BlackElo "2080"]
[Annotator "NA"]
[PlyCount "199"]
[EventDate "2019.08.02"]
[EventType "swiss"]
[EventCountry "SVK"]
[SourceTitle "playchess.com"]
[Source "ChessBase"]
[SourceQuality "1"]
[TimeControl "40/5400+30:1800+30"]

1. d4 {[%emt 0:00:00]} d6 {[%emt 0:00:00]} 2. Nf3 {[%emt 0:00:00]} Nf6 {[%emt 0:00:00]} 3. c4 {[%emt 0:00:02]} Bg4 {[%emt 0:00:10]} 4. Nc3 {[%emt 0:00:17]} Nbd7 {[%emt 0:00:04]} 5. g3 {[%emt 0:00:09]} e5 {[%emt 0:00:07]} 6. Bg2 {[%emt 0:00:17]} c6 {[%emt 0:00:05]} 7. h3 {[%emt 0:01:23]} Bh5 {[%emt 0:00:20]} 8. O-O {[%emt 0:00:45]} Be7 {[%emt 0:00:32]} 9. Nh4 {[%emt 0:01:07]} Bg6 {[%emt 0:02:42]} 10. e3 {[%emt 0:02:42]} Nb6 {[%emt 0:10:01]} 11. b3 {[%emt 0:02:16]} exd4 {[%emt 0:04:40]} 12. exd4 {[%emt 0:00:21]} d5 {[%emt 0:00:13]} 13. c5 {[%emt 0:00:47]} Nbd7 {[%emt 0:00:42]} 14. Nxg6 {[%emt 0:00:40]} hxg6 {[%emt 0:00:34]} 15. b4 {[%emt 0:00:22]} Nf8 {[%emt 0:05:23]} 16. Be3 {[%emt 0:03:26]} Ne6 {[%emt 0:04:11]} 17. b5 {[%emt 0:01:33]} O-O {[%emt 0:03:56]} 18. Rb1 {[%emt 0:03:33]} Bxc5 {[%emt 0:09:26]} 19. bxc6 {[%emt 0:01:10]} bxc6 {[%emt 0:00:35]} 20. dxc5 {[%emt 0:02:20]} d4 {[%emt 0:00:09]} 21. Bxc6 {[%emt 0:02:46]} Rc8 {[%emt 0:05:06]} 22. Bb7 {[%emt 0:01:31]} dxe3 {[%emt 0:05:42]} 23. Bxc8 {[%emt 0:00:25]} Qxc8 {[%emt 0:00:07]} 24. Nd5 {[%emt 0:01:52]} exf2+ {[%emt 0:01:23]} 25. Rxf2 {[%emt 0:00:15]} Qxc5 {[%emt 0:00:20]} 26. Nxf6+ {[%emt 0:00:09]} gxf6 {[%emt 0:00:31]} 27. Qc2 {[%emt 0:09:05]} Qe5 {[%emt 0:08:13]} 28. Kh2 {[%emt 0:01:29]} Ng5 {[%emt 0:09:40]} 29. Re2 {[%emt 0:14:26]} Qd5 {[%emt 0:05:27]} 30. Rd1 {[%emt 0:00:31]} Nf3+ {[%emt 0:05:02]} 31. Kh1 {[%emt 0:00:01]} Nd4+ {[%emt 0:00:26]} 32. Qe4 {[%emt 0:00:09]} Qxe4+ {[%emt 0:04:02]} 33. Rxe4 {[%emt 0:00:02]} Nf5 {[%emt 0:02:39]} 34. Kh2 {[%emt 0:00:29]} Rc8 {[%emt 0:00:35]} 35. Rg1 {[%emt 0:03:13]} Rc7 {[%emt 0:04:08]} 36. Rf4 {[%emt 0:03:13]} Kg7 {[%emt 0:01:26]} 37. g4 {[%emt 0:01:20]} Ne7 {[%emt 0:00:48]} 38. Rf2 {[%emt 0:00:37]} Rc5 {[%emt 0:03:13]} 39. Re1 {[%emt 0:00:51]} Nd5 {[%emt 0:02:22]} 40. Rb1 {[%emt 0:00:00]} Ra5 {[%emt 0:00:00]} 41. Rb3 {[%emt 0:02:54]} Nb6 {[%emt 0:08:41]} 42. Rc2 {[%emt 0:02:46]} Ra4 {[%emt 0:02:49]} 43. Rd3 {[%emt 0:00:53]} Ra5 {[%emt 0:00:54]} 44. a3 {[%emt 0:01:00]} Ra4 {[%emt 0:00:31]} 45. Rc7 {[%emt 0:00:28]} Ra5 {[%emt 0:00:45]} 46. Rb7 {[%emt 0:00:41]} Ra6 {[%emt 0:00:55]} 47. Rc3 {[%emt 0:00:55]} Nd5 {[%emt 0:04:58]} 48. Rc5 {[%emt 0:00:12]} Nf4 {[%emt 0:00:39]} 49. Rcc7 {[%emt 0:02:06]} Rxa3 {[%emt 0:01:12]} 50. Rxf7+ {[%emt 0:00:06]} Kh6 {[%emt 0:00:31]} 51. Rh7+ {[%emt 0:00:04]} Kg5 {[%emt 0:00:28]} 52. Rxa7 {[%emt 0:00:03]} Rb3 {[%emt 0:00:17]} 53. Ra2 {[%emt 0:00:52]} Rc3 {[%emt 0:01:45]} 54. Rb2 {[%emt 0:01:05]} Ra3 {[%emt 0:00:27]} 55. Rb5+ {[%emt 0:00:37]} f5 {[%emt 0:00:01]} 56. gxf5 {[%emt 0:03:29]} Ra2+ {[%emt 0:00:17]} 57. Kg1 {[%emt 0:00:45]} Ra1+ {[%emt 0:00:36]} 58. Kf2 {[%emt 0:00:20]} Ra2+ {[%emt 0:00:09]} 59. Ke3 {[%emt 0:02:14]} Ra3+ {[%emt 0:00:06]} 60. Ke4 {[%emt 0:01:44]} Ra4+ {[%emt 0:00:36]} 61. Ke5 {[%emt 0:01:48]} gxf5 {[%emt 0:00:07]} 62. h4+ {[%emt 0:02:52]} Kg6 {[%emt 0:00:13]} 63. Rbb7 {[%emt 0:00:23]} Re4+ {[%emt 0:01:46]} 64. Kd6 {[%emt 0:00:38]} Nh5 {[%emt 0:00:21]} 65. Rh8 {[%emt 0:02:29]} Rxh4 {[%emt 0:00:39]} 66. Rg8+ {[%emt 0:01:09]} Kf6 {[%emt 0:01:04]} 67. Rbb8 {[%emt 0:00:27]} Ng7 {[%emt 0:01:43]} 68. Kd5 {[%emt 0:00:11]} Ne6 {[%emt 0:01:37]} 69. Rb1 {[%emt 0:00:52]} Rd4+ {[%emt 0:00:43]} 70. Kc6 {[%emt 0:00:02]} Nd8+ {[%emt 0:02:02]} 71. Kb5 {[%emt 0:00:14]} Ne6 {[%emt 0:00:46]} 72. Rh8 {[%emt 0:00:16]} Ke5 {[%emt 0:01:14]} 73. Rh6 {[%emt 0:00:37]} Nf4 {[%emt 0:02:55]} 74. Re1+ {[%emt 0:00:16]} Re4 {[%emt 0:00:42]} 75. Rc1 {[%emt 0:00:43]} Nd3 {[%emt 0:01:12]} 76. Rc8 {[%emt 0:00:27]} Kd4 {[%emt 0:07:29]} 77. Rd8+ {[%emt 0:00:18]} Kc3 {[%emt 0:00:28]} 78. Rc6+ {[%emt 0:00:26]} Kd2 {[%emt 0:00:56]} 79. Rcd6 {[%emt 0:00:20]} Rb4+ {[%emt 0:01:13]} 80. Ka5 {[%emt 0:00:00]} Rb3 {[%emt 0:00:33]} 81. Rf6 {[%emt 0:00:23]} Ra3+ {[%emt 0:00:27]} 82. Kb6 {[%emt 0:00:31]} Rb3+ {[%emt 0:00:39]} 83. Kc6 {[%emt 0:00:02]} Rc3+ {[%emt 0:00:26]} 84. Kd5 {[%emt 0:00:20]} f4 {[%emt 0:00:34]} 85. Ke4 {[%emt 0:00:19]} Ke2 {[%emt 0:00:30]} 86. Kd4 {[%emt 0:00:14]} Ra3 {[%emt 0:00:29]} 87. Re8+ {[%emt 0:00:37]} Kd2 {[%emt 0:00:25]} 88. Ke4 {[%emt 0:00:49]} Ke2 {[%emt 0:00:35]} 89. Kf5+ {[%emt 0:00:24]} Kf3 {[%emt 0:00:30]} 90. Rd6 {[%emt 0:00:09]} Nf2 {[%emt 0:00:33]} 91. Rd5 {[%emt 0:01:15]} Rd3 {[%emt 0:00:26]} 92. Ra5 {[%emt 0:00:32]} Nd1 {[%emt 0:00:30]} 93. Ra4 {[%emt 0:01:07]} Ne3+ {[%emt 0:00:33]} 94. Kg5 {[%emt 0:00:23]} Kg3 {[%emt 0:00:29]} 95. Rae4 {[%emt 0:02:38]} f3 {[%emt 0:00:25]} 96. Rxe3 {[%emt 0:00:32]} Rxe3 {[%emt 0:00:12]} 97. Rxe3 {[%emt 0:00:02]} Kg2 {[%emt 0:00:08]} 98. Kh4 {[%emt 0:00:17]} f2 {[%emt 0:00:11]} 99. Rg3+ {[%emt 0:00:06]} Kh2 {[%emt 0:00:36]} 100. Rf3 {[%emt 0:00:02]} 1/2-1/2

[Event "EYCC Open-U18 2019"]
[Site "Bratislava"]
[Date "2019.08.03"]
[Round "2.27"]
[White "Kozak, Antoni"]
[Black "Pirard, Natan"]
[Result "1/2-1/2"]
[ECO "D35"]
[WhiteElo "2365"]
[BlackElo "2153"]
[Annotator "NA"]
[PlyCount "93"]
[EventDate "2019.08.02"]
[EventType "swiss"]
[EventCountry "SVK"]
[SourceTitle "playchess.com"]
[Source "ChessBase"]
[SourceQuality "1"]
[TimeControl "40/5400+30:1800+30"]

1. d4 {[%emt 0:00:11]} d5 {[%emt 0:00:00]} 2. c4 {[%emt 0:00:07]} e6 {[%emt 0:00:00]} 3. Nc3 {[%emt 0:00:06]} Nf6 {[%emt 0:00:00]} 4. cxd5 {[%emt 0:00:07]} exd5 {[%emt 0:00:00]} 5. Bg5 {[%emt 0:00:09]} c6 {[%emt 0:00:00]} 6. e3 {[%emt 0:01:13]} Nbd7 {[%emt 0:00:11]} 7. Bd3 {[%emt 0:03:37]} Be7 {[%emt 0:00:18]} 8. Qc2 {[%emt 0:02:15]} h6 {[%emt 0:01:22]} 9. Bh4 {[%emt 0:00:14]} Nh5 {[%emt 0:01:09]} 10. Bxe7 {[%emt 0:02:19]} Qxe7 {[%emt 0:00:03]} 11. O-O-O {[%emt 0:02:41]} Nb6 {[%emt 0:02:09]} 12. h3 {[%emt 0:00:47]} Be6 {[%emt 0:04:03]} 13. Nf3 {[%emt 0:01:21]} Nf6 {[%emt 0:03:41]} 14. Kb1 {[%emt 0:07:55]} O-O-O {[%emt 0:07:01]} 15. Ka1 {[%emt 0:17:21]} Kb8 {[%emt 0:03:33]} 16. Rb1 {[%emt 0:02:12]} Qb4 {[%emt 0:08:50]} 17. Nd2 {[%emt 0:05:10]} Nc4 {[%emt 0:07:24]} 18. a3 {[%emt 0:14:29]} Qd6 {[%emt 0:09:11]} 19. Na4 {[%emt 0:06:08]} Nxd2 {[%emt 0:21:54]} 20. Qxd2 {[%emt 0:00:11]} Ne4 {[%emt 0:00:20]} 21. Qc2 {[%emt 0:03:04]} Rhe8 {[%emt 0:06:15]} 22. b4 {[%emt 0:00:54]} Bc8 {[%emt 0:14:14]} 23. Nc5 {[%emt 0:00:39]} f5 {[%emt 0:00:58]} 24. Rhc1 {[%emt 0:01:03]} Re7 {[%emt 0:01:19]} 25. b5 {[%emt 0:05:20]} Nxc5 {[%emt 0:01:12]} 26. Qxc5 {[%emt 0:00:17]} cxb5 {[%emt 0:02:18]} 27. Rxb5 {[%emt 0:01:26]} Rc7 {[%emt 0:00:20]} 28. Qxd6 {[%emt 0:01:52]} Rxd6 {[%emt 0:00:01]} 29. Rbc5 {[%emt 0:00:21]} Rdc6 {[%emt 0:00:32]} 30. Kb2 {[%emt 0:00:28]} Rxc5 {[%emt 0:00:29]} 31. Rxc5 {[%emt 0:00:08]} Rxc5 {[%emt 0:01:01]} 32. dxc5 {[%emt 0:00:05]} b6 {[%emt 0:00:10]} 33. cxb6 {[%emt 0:00:24]} axb6 {[%emt 0:00:02]} 34. Kc3 {[%emt 0:00:12]} Kc7 {[%emt 0:00:15]} 35. Kd4 {[%emt 0:00:07]} Kd6 {[%emt 0:00:16]} 36. h4 {[%emt 0:00:31]} g5 {[%emt 0:00:43]} 37. hxg5 {[%emt 0:01:11]} hxg5 {[%emt 0:00:03]} 38. Bb1 {[%emt 0:00:07]} Bd7 {[%emt 0:01:08]} 39. Ba2 {[%emt 0:00:17]} Bc6 {[%emt 0:00:24]} 40. Bb3 {[%emt 0:00:00]} Bb7 {[%emt 0:00:00]} 41. Ba4 {[%emt 0:00:14]} Ba6 {[%emt 0:01:40]} 42. Be8 {[%emt 0:00:09]} Bb7 {[%emt 0:00:55]} 43. g3 {[%emt 0:00:47]} g4 {[%emt 0:00:54]} 44. Bg6 {[%emt 0:00:21]} Bc8 {[%emt 0:00:29]} 45. Be8 {[%emt 0:00:41]} Bb7 {[%emt 0:00:18]} 46. Kc3 {[%emt 0:00:07]} Ba6 {[%emt 0:03:53]} 47. Kd4 {[%emt 0:00:16] Ke5+} 1/2-1/2

[Event "EYCC Open-U18 2019"]
[Site "Bratislava"]
[Date "2019.08.03"]
[Round "2.28"]
[White "Ludvik, Tomas"]
[Black "Panko, Eduard"]
[Result "1-0"]
[ECO "A04"]
[WhiteElo "2334"]
[BlackElo "2024"]
[Annotator "NA"]
[PlyCount "77"]
[EventDate "2019.08.02"]
[EventType "swiss"]
[EventCountry "SVK"]
[SourceTitle "playchess.com"]
[Source "ChessBase"]
[SourceQuality "1"]
[TimeControl "40/5400+30:1800+30"]

1. Nf3 {[%emt 0:00:00]} e6 {[%emt 0:00:09]} 2. d4 {[%emt 0:00:15]} f5 {[%emt 0:00:20]} 3. c4 {[%emt 0:00:18]} b6 {[%emt 0:00:58]} 4. g3 {[%emt 0:02:13]} Bb7 {[%emt 0:00:41]} 5. Bg2 {[%emt 0:00:07]} Nf6 {[%emt 0:00:06]} 6. O-O {[%emt 0:00:54]} Be7 {[%emt 0:00:33]} 7. d5 {[%emt 0:06:16]} exd5 {[%emt 0:10:55]} 8. Nd4 {[%emt 0:06:12]} g6 {[%emt 0:16:56]} 9. Nc3 {[%emt 0:02:54]} c5 {[%emt 0:16:39]} 10. Nc2 {[%emt 0:10:32]} Na6 {[%emt 0:07:36]} 11. Ne3 {[%emt 0:06:44]} Nc7 {[%emt 0:06:32]} 12. Nexd5 {[%emt 0:01:19]} Ncxd5 {[%emt 0:01:09]} 13. Nxd5 {[%emt 0:01:04]} Nxd5 {[%emt 0:00:10]} 14. Bxd5 {[%emt 0:00:10]} Qc7 {[%emt 0:10:06]} 15. Bf4 {[%emt 0:04:21]} d6 {[%emt 0:00:28]} 16. Qa4+ {[%emt 0:03:17]} Kd8 {[%emt 0:00:01]} 17. Rad1 {[%emt 0:01:34]} Kc8 {[%emt 0:00:02]} 18. b4 {[%emt 0:11:39]} g5 {[%emt 0:05:03]} 19. bxc5 {[%emt 0:03:58]} Bxd5 {[%emt 0:07:03]} 20. cxd6 {[%emt 0:02:50]} Qc6 {[%emt 0:04:17]} 21. Qa6+ {[%emt 0:02:15]} Qb7 {[%emt 0:00:50]} 22. Qxb7+ {[%emt 0:00:55]} Bxb7 {[%emt 0:00:33]} 23. Be5 {[%emt 0:00:20]} Rg8 {[%emt 0:03:52]} 24. dxe7 {[%emt 0:00:24]} Ba6 {[%emt 0:02:35]} 25. Rd6 {[%emt 0:02:47]} Bxc4 {[%emt 0:03:05]} 26. Rc6+ {[%emt 0:00:11]} Kd7 {[%emt 0:00:07]} 27. Rxc4 {[%emt 0:00:19]} Kxe7 {[%emt 0:00:07]} 28. Rfc1 {[%emt 0:01:45]} Ke6 {[%emt 0:00:31]} 29. f4 {[%emt 0:01:42]} gxf4 {[%emt 0:00:02]} 30. Bxf4 {[%emt 0:00:07]} Rge8 {[%emt 0:01:04]} 31. Rc6+ {[%emt 0:01:20]} Kf7 {[%emt 0:00:04]} 32. Rc7+ {[%emt 0:00:37]} Re7 {[%emt 0:01:45]} 33. Rxe7+ {[%emt 0:00:15]} Kxe7 {[%emt 0:00:01]} 34. Rc7+ {[%emt 0:00:10]} Ke6 {[%emt 0:00:06]} 35. Rxh7 {[%emt 0:00:07]} b5 {[%emt 0:00:25]} 36. Rh6+ {[%emt 0:01:03]} Kd5 {[%emt 0:00:33]} 37. Ra6 {[%emt 0:00:26]} Re8 {[%emt 0:00:48]} 38. Kf2 {[%emt 0:00:15]} Re7 {[%emt 0:00:16]} 39. Be3 {[%emt 0:00:25]} 1-0

[Event "EYCC Open-U18 2019"]
[Site "Bratislava"]
[Date "2019.08.03"]
[Round "2.29"]
[White "Martinez Fernandez, Adrian"]
[Black "Storme, Isak"]
[Result "1-0"]
[ECO "B67"]
[WhiteElo "2311"]
[BlackElo "2330"]
[Annotator "NA"]
[PlyCount "67"]
[EventDate "2019.08.02"]
[EventType "swiss"]
[EventCountry "SVK"]
[SourceTitle "playchess.com"]
[Source "ChessBase"]
[SourceQuality "1"]
[TimeControl "40/5400+30:1800+30"]

1. e4 {[%emt 0:00:00]} c5 {[%emt 0:00:00]} 2. Nf3 {[%emt 0:00:00]} Nc6 {[%emt 0:00:00]} 3. d4 {[%emt 0:00:00]} cxd4 {[%emt 0:00:00]} 4. Nxd4 {[%emt 0:00:00]} Nf6 {[%emt 0:00:00]} 5. Nc3 {[%emt 0:00:00]} d6 {[%emt 0:00:01]} 6. Bg5 {[%emt 0:00:06]} e6 {[%emt 0:00:13]} 7. Qd2 {[%emt 0:00:14]} a6 {[%emt 0:00:41]} 8. O-O-O {[%emt 0:00:17]} Bd7 {[%emt 0:00:09]} 9. f4 {[%emt 0:00:07]} b5 {[%emt 0:00:11]} 10. Bxf6 {[%emt 0:00:23]} gxf6 {[%emt 0:06:27]} 11. Kb1 {[%emt 0:00:12]} h5 {[%emt 0:02:02]} 12. Nxc6 {[%emt 0:08:00]} Bxc6 {[%emt 0:00:06]} 13. Qe1 {[%emt 0:00:09]} Qa5 {[%emt 0:14:14]} 14. f5 {[%emt 0:13:56]} b4 {[%emt 0:02:06]} 15. Nd5 {[%emt 0:01:24]} Bxd5 {[%emt 0:00:27]} 16. exd5 {[%emt 0:00:14]} e5 {[%emt 0:00:22]} 17. a3 {[%emt 0:07:41]} Rb8 {[%emt 0:09:16]} 18. Rd4 {[%emt 0:03:23]} Be7 {[%emt 0:17:31]} 19. Rxb4 {[%emt 0:05:41]} Rxb4 {[%emt 0:00:37]} 20. Qxb4 {[%emt 0:00:11]} Qxd5 {[%emt 0:01:36]} 21. Bxa6 {[%emt 0:11:10]} h4 {[%emt 0:14:34]} 22. Bc4 {[%emt 0:13:29]} Qxg2 {[%emt 0:03:29]} 23. Qb8+ {[%emt 0:00:37]} Bd8 {[%emt 0:00:09]} 24. Qb5+ {[%emt 0:00:28]} Kf8 {[%emt 0:02:05]} 25. Bd5 {[%emt 0:00:08]} Qf2 {[%emt 0:04:08]} 26. Qd7 {[%emt 0:03:36]} Be7 {[%emt 0:00:26]} 27. Bc6 {[%emt 0:02:39]} Qd4 {[%emt 0:12:23]} 28. a4 {[%emt 0:05:20]} h3 {[%emt 0:02:20]} 29. Qe8+ {[%emt 0:01:03]} Kg7 {[%emt 0:00:06]} 30. Qxe7 {[%emt 0:00:05]} Rb8 {[%emt 0:02:50]} 31. Bb5 {[%emt 0:00:07]} Rc8 {[%emt 0:00:24]} 32. Be8 {[%emt 0:05:42]} Rxe8 {[%emt 0:00:18]} 33. Qxe8 {[%emt 0:00:01]} Qe4 {[%emt 0:00:08]} 34. Rc1 {[%emt 0:01:17]} 1-0

[Event "EYCC Open-U18 2019"]
[Site "Bratislava"]
[Date "2019.08.03"]
[Round "2.30"]
[White "Horak, Jan"]
[Black "Kotau, Arseni"]
[Result "0-1"]
[ECO "A45"]
[WhiteElo "2020"]
[BlackElo "2227"]
[Annotator "NA"]
[PlyCount "82"]
[EventDate "2019.08.02"]
[EventType "swiss"]
[EventCountry "SVK"]
[SourceTitle "playchess.com"]
[Source "ChessBase"]
[SourceQuality "1"]
[TimeControl "40/5400+30:1800+30"]

1. d4 {[%emt 0:00:00]} Nf6 {[%emt 0:00:00]} 2. g3 {[%emt 0:02:27]} g6 {[%emt 0:00:00]} 3. Bg2 {[%emt 0:00:25]} Bg7 {[%emt 0:00:00]} 4. e4 {[%emt 0:00:36]} d6 {[%emt 0:00:25]} 5. Ne2 {[%emt 0:00:13]} O-O {[%emt 0:00:56]} 6. O-O {[%emt 0:00:45]} e5 {[%emt 0:02:39]} 7. Nbc3 {[%emt 0:00:53]} c6 {[%emt 0:07:38]} 8. a4 {[%emt 0:00:08]} Qc7 {[%emt 0:02:28]} 9. h3 {[%emt 0:01:22]} Nbd7 {[%emt 0:01:46]} 10. Be3 {[%emt 0:02:16]} exd4 {[%emt 0:01:13]} 11. Nxd4 {[%emt 0:00:50]} Re8 {[%emt 0:00:28]} 12. Qd2 {[%emt 0:06:11]} Nc5 {[%emt 0:12:39]} 13. f3 {[%emt 0:01:17]} b6 {[%emt 0:11:15]} 14. Rad1 {[%emt 0:18:02]} Ba6 {[%emt 0:11:59]} 15. Rfe1 {[%emt 0:01:04]} Rad8 {[%emt 0:00:36]} 16. b4 {[%emt 0:04:51]} Ne6 {[%emt 0:01:15]} 17. f4 Nxd4 {[%emt 0:06:22]} 18. Bxd4 {[%emt 0:06:12]} Bb7 {[%emt 0:00:20]} 19. Bf2 {[%emt 0:04:06]} a6 {[%emt 0:04:27]} 20. a5 {[%emt 0:04:34]} bxa5 {[%emt 0:02:09]} 21. bxa5 {[%emt 0:06:41]} Qxa5 {[%emt 0:03:47]} 22. Ra1 Qc7 {[%emt 0:01:53]} 23. Rab1 {[%emt 0:12:40]} Nd7 {[%emt 0:03:41]} 24. Ne2 {[%emt 0:11:06]} c5 {[%emt 0:01:40]} 25. Rbd1 {[%emt 0:02:05]} Nb6 {[%emt 0:06:37]} 26. Nc3 {[%emt 0:01:36]} Nc4 {[%emt 0:01:18]} 27. Nd5 {[%emt 0:00:44]} Bxd5 {[%emt 0:06:50]} 28. Qxd5 {[%emt 0:00:06]} Nb6 {[%emt 0:00:43]} 29. Qg5 {[%emt 0:04:00]} Na4 {[%emt 0:02:27]} 30. f5 {[%emt 0:00:51]} Qe7 {[%emt 0:03:02]} 31. Qg4 {[%emt 0:01:11]} Nc3 {[%emt 0:00:44]} 32. Rd3 {[%emt 0:00:53]} c4 {[%emt 0:01:05]} 33. Rd4 {[%emt 0:01:06]} Bxd4 {[%emt 0:02:04]} 34. Bxd4 Nb5 35. Be3 {[%emt 0:01:10]} Qe5 {[%emt 0:01:05]} 36. Bg5 {[%emt 0:01:24]} d5 {[%emt 0:01:41]} 37. Qh4 {[%emt 0:00:42]} dxe4 {[%emt 0:00:31]} 38. fxg6 {[%emt 0:05:36]} fxg6 {[%emt 0:00:21]} 39. Rxe4 {[%emt 0:00:47]} Qc5+ {[%emt 0:00:49]} 40. Kh2 {[%emt 0:00:00]} Rxe4 {[%emt 0:00:00]} 41. Bxe4 {[%emt 0:03:17]} Rd1 {[%emt 0:01:46]} 0-1

[Event "EYCC Open-U18 2019"]
[Site "Bratislava"]
[Date "2019.08.03"]
[Round "2.31"]
[White "Blohberger, Felix"]
[Black "Polczyk, Mikolaj"]
[Result "1-0"]
[ECO "A06"]
[WhiteElo "2476"]
[BlackElo "2111"]
[Annotator "ChessBase"]
[PlyCount "81"]
[EventDate "2019.08.02"]
[EventType "swiss"]
[EventCountry "SVK"]
[SourceTitle "playchess.com"]
[Source "ChessBase"]
[SourceQuality "1"]
[TimeControl "40/5400+30:1800+30"]

1. Nf3 {[%emt 0:00:00]} d5 {[%emt 0:00:00]} 2. g3 {[%emt 0:00:00]} Nf6 {[%emt 0:00:08]} 3. Bg2 {[%emt 0:00:39]} c5 {[%emt 0:00:45]} 4. c4 {[%emt 0:01:30]} Nc6 {[%emt 0:00:44]} 5. cxd5 {[%emt 0:11:09]} Nxd5 {[%emt 0:00:06]} 6. Nc3 {[%emt 0:02:17]} Nc7 {[%emt 0:15:50]} 7. O-O {[%emt 0:00:14]} e5 {[%emt 0:00:41]} 8. a3 {[%emt 0:01:19]} Be7 {[%emt 0:01:23]} 9. b4 {[%emt 0:02:58]} Be6 {[%emt 0:13:52]} 10. Rb1 {[%emt 0:12:22]} cxb4 {[%emt 0:03:26]} 11. axb4 {[%emt 0:00:24]} a6 {[%emt 0:02:54]} 12. b5 {[%emt 0:05:51]} axb5 {[%emt 0:00:08]} 13. Nxb5 {[%emt 0:00:19]} O-O {[%emt 0:03:11]} 14. d3 {[%emt 0:10:05]} Ra5 {[%emt 0:04:51]} 15. Nxc7 {[%emt 0:02:49]} Qxc7 {[%emt 0:00:07]} 16. Bd2 {[%emt 0:02:17]} Ra2 {[%emt 0:02:30]} 17. Rb5 {[%emt 0:04:51]} Na7 {[%emt 0:11:08]} 18. Rxe5 {[%emt 0:06:01]} Bf6 {[%emt 0:00:37]} 19. Rxe6 {[%emt 0:01:10]} Ra1 {[%emt 0:07:32]} 20. Qxa1 {[%emt 0:05:32]} Bxa1 {[%emt 0:01:34]} 21. Rxa1 {[%emt 0:00:13]} fxe6 {[%emt 0:00:46]} 22. Rxa7 {[%emt 0:01:07]} Qc2 {[%emt 0:00:35]} 23. Rxb7 {[%emt 0:20:06]} Qd1+ {[%emt 0:06:16]} 24. Be1 {[%emt 0:01:34]} Qxe2 {[%emt 0:08:37]} 25. Bb4 {[%emt 0:02:53]} Rc8 {[%emt 0:02:26]} 26. h4 {[%emt 0:01:19]} h6 {[%emt 0:01:51]} 27. Bd2 {[%emt 0:03:08]} Rf8 {[%emt 0:05:13]} 28. Bf4 {[%emt 0:00:11]} Qxd3 {[%emt 0:01:21]} 29. Ne5 {[%emt 0:01:29]} Qd1+ {[%emt 0:00:09]} 30. Kh2 {[%emt 0:00:32]} Qc2 {[%emt 0:00:21]} 31. Be3 {[%emt 0:00:24]} Qf5 {[%emt 0:02:15]} 32. Nc6 {[%emt 0:00:20]} Qc2 {[%emt 0:02:31]} 33. Nd4 {[%emt 0:00:45]} Qg6 {[%emt 0:00:28]} 34. Re7 {[%emt 0:00:37]} Re8 {[%emt 0:00:20]} 35. Be4 {[%emt 0:00:26]} Qh5 {[%emt 0:00:48]} 36. Bf3 {[%emt 0:00:09]} Qg6 {[%emt 0:01:01]} 37. h5 {[%emt 0:00:06]} Qxh5+ {[%emt 0:01:32]} 38. Bxh5 {[%emt 0:00:05]} Rxe7 {[%emt 0:00:03]} 39. Bg4 {[%emt 0:00:07]} e5 {[%emt 0:00:04]} 40. Nc6 {[%emt 0:00:00]} Re8 {[%emt 0:00:00]} 41. Bd7 {[%emt 0:00:14]} 1-0

[Event "EYCC Open-U18 2019"]
[Site "Bratislava"]
[Date "2019.08.03"]
[Round "2.32"]
[White "Petriashvili, Nikoloz"]
[Black "Sousa, Hugo Carneiro"]
[Result "1-0"]
[ECO "A05"]
[WhiteElo "2451"]
[BlackElo "2130"]
[Annotator "ChessBase"]
[PlyCount "49"]
[EventDate "2019.08.02"]
[EventType "swiss"]
[EventCountry "SVK"]
[SourceTitle "playchess.com"]
[Source "ChessBase"]
[SourceQuality "1"]
[TimeControl "40/5400+30:1800+30"]

1. Nf3 {[%emt 0:00:00]} Nf6 {[%emt 0:00:00]} 2. g3 {[%emt 0:00:00]} d5 {[%emt 0:00:00]} 3. Bg2 {[%emt 0:00:08]} e6 {[%emt 0:00:15]} 4. O-O {[%emt 0:01:08]} Be7 {[%emt 0:00:40]} 5. c4 {[%emt 0:03:00]} O-O {[%emt 0:01:13]} 6. b3 {[%emt 0:02:08]} c5 {[%emt 0:01:00]} 7. e3 {[%emt 0:00:23]} Nc6 {[%emt 0:02:11]} 8. Bb2 {[%emt 0:00:44]} b6 {[%emt 0:05:05]} 9. Nc3 {[%emt 0:00:44]} Bb7 {[%emt 0:02:16]} 10. cxd5 {[%emt 0:01:24]} Nxd5 {[%emt 0:02:52]} 11. Nxd5 {[%emt 0:01:54]} Qxd5 {[%emt 0:05:12]} 12. d4 {[%emt 0:03:19]} Rfd8 {[%emt 0:11:45]} 13. Ne5 {[%emt 0:03:01]} Qd6 {[%emt 0:01:11]} 14. Qf3 {[%emt 0:02:57]} Nxe5 {[%emt 0:09:27]} 15. Qxb7 {[%emt 0:00:11]} Nd7 {[%emt 0:12:08]} 16. Qxa8 {[%emt 0:07:26]} Rxa8 {[%emt 0:00:15]} 17. Bxa8 {[%emt 0:00:02]} cxd4 {[%emt 0:03:55]} 18. Bxd4 {[%emt 0:00:08]} e5 {[%emt 0:01:53]} 19. Bb2 {[%emt 0:00:20]} Qh6 {[%emt 0:03:02]} 20. Rac1 {[%emt 0:00:57]} Bc5 {[%emt 0:02:33]} 21. Rfd1 {[%emt 0:01:13]} Qe6 {[%emt 0:00:41]} 22. Bb7 {[%emt 0:04:18]} Qe7 {[%emt 0:01:52]} 23. b4 {[%emt 0:02:33]} Bxb4 {[%emt 0:01:29]} 24. Rc7 {[%emt 0:00:39]} Bd6 {[%emt 0:01:39]} 25. Ba3 {[%emt 0:00:04]} 1-0